bitfinex/quotes_BTCUSD_20251021
["timestamp","ask_amount","ask_price","bid_price","bid_amount"]
[1761055736433,0.19200877,109370.0,109350.0,0.11928]
[1761055736868,0.18288222,109360.0,109350.0,0.11928]
[1761055737070,0.18289894,109350.0,109340.0,0.00014718]
[1761055737346,0.18288222,109360.0,109340.0,0.11938718]
[1761055737749,0.34,109360.0,109340.0,0.11938718]
[1761055737951,0.18289894,109350.0,109340.0,0.11938718]
[1761055738157,0.18289894,109350.0,109340.0,0.00014718]
[1761055738291,0.52289894,109350.0,109340.0,0.11934718]
[1761055739584,0.52289894,109350.0,109340.0,0.00014718]
[1761055740000,3.52299894,109350.0,109340.0,0.00014718]
[1761055740407,0.52299894,109350.0,109340.0,0.00014718]
[1761055740617,0.0001,109350.0,109340.0,0.11930718]
[1761055741348,0.0001,109350.0,109340.0,0.39204186]
[1761055741558,0.0001,109350.0,109340.0,0.20912619]
[1761055741761,0.0001,109350.0,109340.0,0.39204186]
[1761055742184,0.0001,109350.0,109340.0,1.22205731]
[1761055742795,0.01444035,109410.0,109390.0,0.1828288]
[1761055743000,0.01444035,109410.0,109400.0,0.11936]
[1761055743218,0.0001,109410.0,109400.0,0.11936]
[1761055743428,0.0001,109410.0,109400.0,0.08981901]
[1761055743632,0.0001,109410.0,109400.0,0.11936]
[1761055743633,0.19203971,109410.0,109400.0,0.11936]
[1761055744113,0.19253001,109410.0,109400.0,0.11936]
[1761055744729,0.0005903,109410.0,109400.0,0.11936]
[1761055745133,0.18338894,109410.0,109400.0,0.11936]
[1761055745514,0.18651462,109410.0,109400.0,0.11936]
[1761055745651,0.00371598,109410.0,109400.0,0.11936]
[1761055746051,0.18651462,109410.0,109400.0,0.11936]
[1761055746879,0.18651462,109410.0,109370.0,0.18286392]
[1761055746880,0.18283596,109390.0,109370.0,0.18286392]
[1761055747104,0.19197288,109400.0,109380.0,0.11924]
[1761055747284,0.19197288,109400.0,109380.0,0.30208794]
[1761055747483,0.18339043,109410.0,109380.0,0.40104938]
[1761055747752,0.00243153,109390.0,109380.0,0.80124582]
[1761055747942,0.00243153,109390.0,109380.0,0.89106483]
[1761055748332,0.00243153,109390.0,109380.0,0.28180938]
[1761055748572,0.00243153,109390.0,109380.0,0.20905901]
[1761055748779,0.00243153,109390.0,109380.0,0.39190779]
[1761055749297,0.00243153,109390.0,109380.0,0.88192324]
[1761055750329,0.0006903,109410.0,109400.0,0.18281535]
[1761055750530,0.0006903,109410.0,109400.0,0.90029134]
[1761055750735,0.0006903,109410.0,109400.0,0.88200981]
[1761055751365,0.0006903,109410.0,109400.0,0.39199436]
[1761055751599,0.0006903,109410.0,109400.0,0.88200981]
[1761055752213,0.0006903,109410.0,109400.0,1.74820754]
[1761055752628,0.0006903,109410.0,109400.0,1.10264981]
[1761055752840,0.0006903,109410.0,109400.0,0.88204981]
[1761055753046,0.0006903,109410.0,109400.0,0.57983446]
[1761055753250,0.0006903,109410.0,109400.0,0.20921901]
[1761055753461,0.0006903,109410.0,109400.0,0.1194]
[1761055753668,0.0006903,109410.0,109390.0,0.20071604]
[1761055753900,0.20145657,109410.0,109400.0,0.1194]
[1761055754096,0.18348959,109410.0,109380.0,0.1828456]
[1761055754305,0.18348959,109410.0,109390.0,0.11936]
[1761055754514,0.0006903,109410.0,109390.0,0.30219165]
[1761055755349,0.0006903,109410.0,109400.0,0.18281535]
[1761055755560,0.0006903,109410.0,109390.0,0.39201066]
[1761055756120,0.18348949,109410.0,109390.0,0.18283081]
[1761055756341,0.18348949,109410.0,109400.0,0.11936]
[1761055756522,0.0006903,109410.0,109400.0,0.11936]
[1761055756927,0.0006903,109410.0,109400.0,0.30217535]
[1761055757136,0.0006903,109410.0,109400.0,0.11936]
[1761055757347,0.0006903,109410.0,109400.0,0.30217535]
[1761055758687,0.0006903,109410.0,109400.0,0.11936]
[1761055759048,0.0006903,109410.0,109400.0,0.30217535]
[1761055759956,0.0006903,109410.0,109400.0,0.88200981]
[1761055760108,0.0006903,109410.0,109400.0,0.39199436]
[1761055760308,0.0006903,109410.0,109400.0,0.39187436]
[1761055760540,0.0006903,109410.0,109380.0,0.19198803]
[1761055760845,0.18348894,109410.0,109390.0,0.11928]
[1761055761155,0.18316257,109400.0,109390.0,0.11928]
[1761055761602,0.00034722,109400.0,109390.0,0.11928]
[1761055761956,0.18316385,109400.0,109380.0,0.2726674]
[1761055762159,0.18316385,109400.0,109390.0,0.1192]
[1761055762893,0.18283236,109390.0,109370.0,0.00107932]
[1761055763098,0.18283236,109390.0,109380.0,0.1192]
[1761055763384,0.19230461,109400.0,109380.0,0.1192]
[1761055763619,0.17149198,109400.0,109370.0,0.27376099]
[1761055763826,0.52348916,109410.0,109390.0,0.18283137]
[1761055764041,0.3406903,109410.0,109400.0,0.11916]
[1761055764246,0.0006903,109410.0,109400.0,0.30197535]
[1761055764655,0.00103747,109410.0,109400.0,0.30197535]
[1761055765068,0.00103747,109410.0,109400.0,0.39179436]
[1761055765283,0.00103747,109410.0,109400.0,0.88180981]
[1761055765892,0.00103747,109410.0,109400.0,0.39179436]
[1761055766109,0.00103747,109410.0,109400.0,0.88180981]
[1761055766685,0.00103747,109410.0,109400.0,1.37182526]
[1761055767087,0.00103747,109410.0,109400.0,0.88180981]
[1761055767863,0.00122747,109410.0,109400.0,0.88180981]
[1761055768417,1e-08,109410.0,109400.0,1.84684754]
[1761055768827,0.11734425,109440.0,109430.0,0.18276523]
[1761055769005,0.11749131,109440.0,109430.0,0.41006076]
[1761055769213,0.11749131,109440.0,109430.0,0.39178424]
[1761055769839,0.11749131,109440.0,109430.0,0.88179969]
[1761055770450,0.11749131,109440.0,109430.0,0.76259969]
[1761055770650,0.11749131,109440.0,109430.0,0.88179969]
[1761055771821,0.11749131,109440.0,109430.0,0.77888035]
[1761055772033,0.11749131,109440.0,109430.0,0.08981901]
[1761055772239,0.11749131,109440.0,109410.0,0.68195402]
[1761055772445,0.11749131,109440.0,109420.0,0.41031859]
[1761055772653,0.11749131,109440.0,109420.0,0.3920404]
[1761055773061,0.11749131,109440.0,109420.0,0.2726004]
[1761055773263,0.11749131,109440.0,109430.0,0.30216523]
[1761055773466,0.11749131,109440.0,109430.0,0.39198424]
[1761055773823,0.11749131,109440.0,109430.0,0.88199969]
[1761055774217,0.11759131,109440.0,109430.0,0.88199969]
[1761055774446,0.11863248,109440.0,109430.0,0.88199969]
[1761055775264,1e-08,109450.0,109440.0,0.18274853]
[1761055775470,1e-08,109450.0,109440.0,1.66519299]
[1761055775679,1e-08,109450.0,109440.0,1.64778071]
[1761055775887,0.00034699,109450.0,109440.0,0.66774981]
[1761055776103,0.00034699,109450.0,109440.0,0.28156754]
[1761055776306,0.00034699,109450.0,109440.0,0.89102299]
[1761055776446,0.00034699,109450.0,109440.0,1.38103844]
[1761055777444,0.00034699,109450.0,109440.0,1.41722072]
[1761055778104,0.00034699,109450.0,109440.0,0.89102299]
[1761055778522,0.00034699,109450.0,109440.0,0.69927446]
[1761055778719,0.00034699,109450.0,109440.0,0.88202299]
[1761055778923,0.00034699,109450.0,109440.0,0.39200754]
[1761055779130,0.00034699,109450.0,109440.0,0.88202299]
[1761055780768,0.00044699,109450.0,109440.0,0.88202299]
[1761055780976,0.00044699,109450.0,109440.0,1.37203844]
[1761055781580,0.00044699,109450.0,109440.0,0.88202299]
[1761055782004,0.00044699,109450.0,109440.0,0.39200754]
[1761055782203,0.00044699,109450.0,109440.0,1.37203844]
[1761055782404,0.00044699,109450.0,109440.0,0.39200754]
[1761055782589,0.00044699,109450.0,109440.0,0.88202299]
[1761055783083,0.00044699,109450.0,109440.0,0.27256754]
[1761055783292,0.00044699,109450.0,109440.0,0.39180754]
[1761055783458,0.00044699,109450.0,109440.0,0.88182299]
[1761055784464,0.00044699,109450.0,109440.0,1.37183844]
[1761055784812,0.00044699,109450.0,109440.0,1.74802072]
[1761055785098,1e-08,109450.0,109440.0,1.75715814]
[1761055785299,1e-08,109450.0,109440.0,1.76715813]
[1761055785715,1e-08,109450.0,109440.0,1.75802071]
[1761055785921,1e-08,109450.0,109440.0,0.64874982]
[1761055786126,1e-08,109450.0,109440.0,1.85686071]
[1761055786334,1e-08,109450.0,109440.0,1.86599813]
[1761055786741,1e-08,109450.0,109440.0,1.85686071]
[1761055786954,1e-08,109450.0,109440.0,1.84686072]
[1761055787161,1e-08,109450.0,109440.0,1.85686071]
[1761055787501,1e-08,109450.0,109440.0,0.27256754]
[1761055787708,1e-08,109450.0,109440.0,0.88182299]
[1761055788123,1e-08,109450.0,109440.0,0.39176754]
[1761055788291,1e-08,109450.0,109440.0,0.88178299]
[1761055788699,1e-08,109450.0,109440.0,1.37179844]
[1761055789242,1e-08,109450.0,109440.0,0.88178299]
[1761055790336,1e-08,109450.0,109440.0,0.27256754]
[1761055790571,1e-08,109450.0,109440.0,0.88178299]
[1761055790704,1e-08,109450.0,109440.0,0.39176754]
[1761055790906,1e-08,109450.0,109440.0,0.08981901]
[1761055791133,1e-08,109450.0,109440.0,0.39172754]
[1761055792096,1e-08,109450.0,109440.0,0.20897901]
[1761055792299,0.18273185,109450.0,109440.0,0.20897901]
[1761055792556,1e-08,109450.0,109440.0,0.69899446]
[1761055792754,0.18273185,109450.0,109440.0,0.20897901]
[1761055792966,0.19186844,109450.0,109420.0,0.49109411]
[1761055793236,0.18275381,109440.0,109430.0,0.20897901]
[1761055793444,0.19186844,109450.0,109430.0,0.39174341]
[1761055793445,1e-08,109450.0,109430.0,0.39174341]
[1761055793647,0.18273333,109450.0,109430.0,0.20897901]
[1761055793853,0.18274853,109440.0,109430.0,0.11916]
[1761055794059,0.19918296,109440.0,109430.0,0.11916]
[1761055795195,0.18276523,109430.0,109420.0,0.00122572]
[1761055795422,0.52276523,109430.0,109420.0,0.00122572]
[1761055796374,3.53276522,109430.0,109420.0,0.00122572]
[1761055796787,3.5689475,109430.0,109420.0,0.00122572]
[1761055797045,0.1828459,109390.0,109360.0,0.18287699]
[1761055797225,0.1828459,109390.0,109370.0,0.08981901]
[1761055797437,0.1828459,109390.0,109370.0,0.39176406]
[1761055797649,0.1828459,109390.0,109380.0,0.0017361]
[1761055798615,0.1919882,109400.0,109380.0,0.0017361]
[1761055798813,0.1919882,109400.0,109370.0,0.11908]
[1761055799030,0.18283216,109390.0,109370.0,0.11908]
[1761055799487,0.18284878,109380.0,109370.0,0.11908]
[1761055799880,0.18283216,109390.0,109370.0,0.11908]
[1761055800258,0.18283424,109410.0,109370.0,0.8817686]
[1761055800458,0.18282296,109420.0,109390.0,0.67284272]
[1761055800658,0.18278429,109420.0,109400.0,0.119]
[1761055800903,0.00038456,109430.0,109410.0,0.76262801]
[1761055801115,0.00038456,109430.0,109420.0,0.30178194]
[1761055801316,0.18314979,109430.0,109420.0,0.119]
[1761055801841,0.18329668,109430.0,109420.0,0.119]
[1761055802480,0.00053145,109430.0,109400.0,0.18281467]
[1761055802685,0.00053145,109430.0,109420.0,0.7626164]
[1761055802891,0.00053145,109430.0,109420.0,1.02903961]
[1761055803106,0.00053145,109430.0,109420.0,1.37803961]
[1761055803556,1e-08,109430.0,109420.0,1.42422188]
[1761055803768,1e-08,109430.0,109420.0,1.43422187]
[1761055803989,1e-08,109440.0,109430.0,0.57808576]
[1761055804197,1e-08,109440.0,109430.0,1.64222343]
[1761055804407,1e-08,109440.0,109430.0,0.87664651]
[1761055804671,1e-08,109440.0,109430.0,1.62308518]
[1761055804881,1e-08,109440.0,109430.0,0.86664652]
[1761055805097,1e-08,109440.0,109430.0,1.62308518]
[1761055806628,1e-08,109440.0,109430.0,1.63308517]
[1761055807594,1e-08,109440.0,109430.0,1.62308518]
[1761055807811,1e-08,109440.0,109430.0,1.63308517]
[1761055808330,1e-08,109440.0,109430.0,0.83046424]
[1761055808541,1e-08,109440.0,109430.0,1.5869029]
[1761055808670,1e-08,109440.0,109430.0,1.59690289]
[1761055809087,1e-08,109440.0,109430.0,0.86664652]
[1761055809313,1e-08,109440.0,109430.0,1.77128518]
[1761055809964,0.00034704,109440.0,109430.0,1.3951029]
[1761055810171,0.00034704,109440.0,109430.0,0.49046424]
[1761055811337,0.00034704,109440.0,109430.0,0.39154424]
[1761055811722,0.00034704,109440.0,109430.0,0.08981901]
[1761055811952,0.00034704,109440.0,109430.0,0.20873901]
[1761055812252,0.18309557,109440.0,109410.0,0.19301351]
[1761055812473,0.1827678,109430.0,109410.0,0.09104469]
[1761055812704,0.19223299,109440.0,109410.0,0.29212224]
[1761055812916,0.18277681,109430.0,109410.0,0.00122568]
[1761055813363,0.18277681,109430.0,109420.0,0.11892]
[1761055813794,0.18276523,109430.0,109420.0,0.11892]
[1761055814003,0.1993189,109440.0,109420.0,0.11892]
[1761055814420,0.0165703,109440.0,109420.0,0.30169302]
[1761055814636,0.00034704,109440.0,109430.0,0.18276523]
[1761055815069,0.0001,109430.0,109420.0,0.39151203]
[1761055815278,0.0001,109430.0,109420.0,0.20873901]
[1761055815494,0.0001,109430.0,109420.0,0.39152095]
[1761055817477,0.18286523,109430.0,109420.0,0.11892]
[1761055817683,0.18287358,109430.0,109410.0,0.00122568]
[1761055817892,0.18278194,109420.0,109410.0,0.00122568]
[1761055818087,0.18278194,109420.0,109410.0,0.12022568]
[1761055818482,0.18287358,109430.0,109410.0,0.12022568]
[1761055818680,0.0001,109430.0,109410.0,0.21004469]
[1761055818880,0.0001,109430.0,109410.0,0.39284194]
[1761055819069,0.18286668,109430.0,109410.0,0.39284185]
[1761055819480,0.18286668,109430.0,109410.0,0.21004469]
[1761055819683,0.0001,109430.0,109420.0,0.27260095]
[1761055819919,0.0001,109430.0,109420.0,1.02903961]
[1761055820547,0.0001,109430.0,109420.0,1.36903961]
[1761055820752,0.0001,109430.0,109420.0,1.50402189]
[1761055820957,0.0001,109430.0,109420.0,0.61260095]
[1761055821165,0.0001,109430.0,109420.0,0.27260095]
[1761055821612,0.18286523,109430.0,109420.0,0.08981901]
[1761055821812,0.18286523,109430.0,109420.0,0.20893901]
[1761055822222,0.0001,109430.0,109420.0,0.20893901]
[1761055822474,0.18286523,109430.0,109420.0,0.20893901]
[1761055822632,0.0001,109430.0,109420.0,0.20893901]
[1761055822860,0.0001,109430.0,109420.0,0.39172095]
[1761055824247,0.0001,109430.0,109420.0,1.14815961]
[1761055824836,0.0001,109430.0,109420.0,0.39172095]
[1761055825373,0.0001,109430.0,109420.0,1.48815961]
[1761055827021,1e-08,109430.0,109420.0,1.53348098]
[1761055827177,1e-08,109430.0,109420.0,1.54348097]
[1761055827615,1e-08,109430.0,109420.0,4.54348097]
[1761055828787,1e-08,109430.0,109420.0,4.53434188]
[1761055828985,1e-08,109430.0,109420.0,4.55266188]
[1761055829190,1e-08,109430.0,109420.0,4.54348097]
[1761055829387,1e-08,109440.0,109430.0,0.2289475]
[1761055829560,1e-08,109440.0,109430.0,1.08420517]
[1761055829747,1e-08,109440.0,109430.0,1.07420518]
[1761055830429,1e-08,109460.0,109450.0,0.18273184]
[1761055830620,1e-08,109470.0,109460.0,0.52271514]
[1761055830820,1e-08,109470.0,109460.0,1.42415508]
[1761055831663,0.00014699,109470.0,109460.0,1.42415508]
[1761055831810,0.00014699,109470.0,109460.0,1.41415509]
[1761055832026,0.00014699,109470.0,109460.0,1.63199509]
[1761055832614,0.00014699,109470.0,109460.0,0.87555643]
[1761055833040,13.96705525,109500.0,109490.0,0.18266508]
[1761055833275,13.96705525,109500.0,109490.0,0.40979059]
[1761055833431,13.96705525,109500.0,109490.0,0.39141577]
[1761055836463,13.96913618,109500.0,109490.0,0.39141577]
[1761055837221,13.96913618,109500.0,109490.0,0.27237577]
[1761055837418,13.96913618,109500.0,109490.0,0.39141577]
[1761055838418,13.52050246,109500.0,109490.0,1.14785443]
[1761055838668,13.23642267,109500.0,109490.0,1.55216995]
[1761055839029,12.90429976,109500.0,109490.0,1.55216995]
[1761055839235,12.65259046,109500.0,109490.0,1.56216994]
[1761055839633,12.45311069,109500.0,109490.0,1.43399669]
[1761055839838,12.32151826,109500.0,109490.0,1.44312994]
[1761055840040,12.32151826,109500.0,109490.0,1.66104994]
[1761055840237,11.90341151,109500.0,109490.0,1.66104994]
[1761055840479,11.73282018,109500.0,109490.0,1.66104994]
[1761055840668,11.43139145,109500.0,109490.0,4.67104993]
[1761055841073,11.09966475,109500.0,109490.0,4.67104993]
[1761055841355,10.84940929,109500.0,109490.0,4.67104993]
[1761055841590,10.71410371,109500.0,109490.0,4.66100994]
[1761055841991,10.34707585,109500.0,109490.0,4.66100994]
[1761055842193,10.19465035,109500.0,109490.0,4.67100993]
[1761055842446,10.04098415,109500.0,109490.0,4.67100993]
[1761055843033,9.45361993,109500.0,109490.0,4.67100993]
[1761055843240,8.51727277,109500.0,109490.0,4.67100993]
[1761055843441,8.34136794,109500.0,109490.0,4.67100993]
[1761055843606,7.938738,109500.0,109490.0,4.76745993]
[1761055843814,7.58561056,109500.0,109490.0,4.76745993]
[1761055844015,6.36151769,109500.0,109490.0,5.52389859]
[1761055844279,6.23141027,109500.0,109490.0,5.52389859]
[1761055844482,5.93789874,109500.0,109490.0,5.52389859]
[1761055844684,5.40344907,109500.0,109490.0,5.52389859]
[1761055844883,5.37603379,109500.0,109490.0,3.80999868]
[1761055845103,5.27392544,109500.0,109490.0,4.51025508]
[1761055845307,5.24651016,109500.0,109490.0,4.44399668]
[1761055845458,4.98716769,109500.0,109490.0,4.67100826]
[1761055845683,4.35770932,109500.0,109490.0,5.52389692]
[1761055845890,4.33029404,109500.0,109490.0,5.53922121]
[1761055846252,4.11389629,109500.0,109490.0,4.78278255]
[1761055846382,3.85334179,109500.0,109490.0,4.78278255]
[1761055846590,3.60408861,109500.0,109490.0,4.78278255]
[1761055846786,3.49040527,109500.0,109490.0,4.78278255]
[1761055847165,2.99034322,109500.0,109490.0,4.78278255]
[1761055847283,2.86241916,109500.0,109490.0,4.78278255]
[1761055847660,2.5854809,109500.0,109490.0,4.78278255]
[1761055847799,2.48194928,109500.0,109490.0,4.78278255]
[1761055847999,2.26162648,109500.0,109490.0,4.79178255]
[1761055848198,1.90629699,109500.0,109490.0,4.79178255]
[1761055848397,1.90629699,109500.0,109490.0,4.76745826]
[1761055848398,1.70477993,109500.0,109490.0,4.76745826]
[1761055848647,1.57219296,109500.0,109490.0,4.79178255]
[1761055848808,1.40142852,109500.0,109490.0,4.79178255]
[1761055849012,1.3261907,109500.0,109490.0,4.78265097]
[1761055849216,0.91324497,109500.0,109490.0,4.7383267]
[1761055849421,0.91324497,109500.0,109490.0,4.76745743]
[1761055849422,0.91334497,109500.0,109490.0,4.76745743]
[1761055849627,0.33186086,109500.0,109490.0,5.52389609]
[1761055849825,0.15410422,109510.0,109500.0,3.78423041]
[1761055850073,0.12683589,109510.0,109500.0,5.29710773]
[1761055850304,0.00990069,109530.0,109520.0,3.58792805]
[1761055850505,0.01039041,109530.0,109520.0,5.31870438]
[1761055850894,0.04254988,109540.0,109530.0,3.55172826]
[1761055851095,0.04254988,109540.0,109530.0,4.39798593]
[1761055851315,0.04254988,109540.0,109530.0,4.43416821]
[1761055851316,0.04393628,109540.0,109530.0,4.43416821]
[1761055852477,0.04393628,109540.0,109530.0,4.4250383]
[1761055852681,0.04393628,109540.0,109530.0,4.5214883]
[1761055852993,0.04393628,109540.0,109530.0,4.53061738]
[1761055853415,0.04393628,109540.0,109530.0,4.5214883]
[1761055853847,0.04393628,109540.0,109530.0,4.53061738]
[1761055854050,0.04393628,109540.0,109530.0,4.43335831]
[1761055854254,0.04393628,109540.0,109530.0,4.44248739]
[1761055854450,0.04393628,109540.0,109530.0,4.45248738]
[1761055854652,0.19811849,109590.0,109540.0,3.20258168]
[1761055854866,1e-08,109550.0,109540.0,4.57138904]
[1761055855461,0.19811849,109590.0,109570.0,0.52253171]
[1761055855675,0.19811849,109590.0,109570.0,1.64201165]
[1761055855879,0.19811849,109590.0,109570.0,1.66113822]
[1761055856084,0.19811849,109590.0,109570.0,4.66113822]
[1761055856328,0.19811849,109590.0,109570.0,3.90469956]
[1761055856529,0.19811849,109590.0,109570.0,3.88557299]
[1761055856748,0.19811849,109590.0,109570.0,0.65685901]
[1761055856955,0.19811849,109590.0,109570.0,0.85851729]
[1761055857129,0.19811849,109590.0,109570.0,1.61495595]
[1761055857333,0.00038,109580.0,109570.0,1.61495595]
[1761055857507,0.00038,109580.0,109570.0,0.86251729]
[1761055857754,0.00038,109580.0,109570.0,1.60895596]
[1761055858084,0.00038,109580.0,109570.0,4.65513823]
[1761055858289,0.00038,109580.0,109570.0,4.62501514]
[1761055858890,0.00038,109580.0,109570.0,4.6811974]
[1761055859512,0.00038,109580.0,109570.0,4.63588854]
[1761055859814,0.00038,109580.0,109570.0,0.8594499]
[1761055860003,0.00038,109580.0,109570.0,1.6811974]
[1761055860212,0.00048,109580.0,109570.0,4.6811974]
[1761055861253,0.00048,109580.0,109570.0,3.92475874]
[1761055861453,0.00048,109580.0,109570.0,4.6811974]
[1761055861875,0.19811849,109590.0,109580.0,0.54251503]
[1761055862053,0.19826529,109590.0,109580.0,4.3887727]
[1761055862380,0.20375149,109610.0,109600.0,0.55866403]
[1761055862619,0.20375149,109610.0,109600.0,1.5333217]
[1761055862823,0.20375149,109610.0,109600.0,1.77049489]
[1761055863025,0.20375149,109610.0,109600.0,4.78049488]
[1761055863207,0.20375149,109610.0,109600.0,4.28412691]
[1761055863406,0.20375149,109610.0,109600.0,4.29325099]
[1761055863568,0.20375149,109610.0,109600.0,3.8060071]
[1761055863768,0.20385149,109610.0,109600.0,0.74070076]
[1761055863977,0.20385149,109610.0,109600.0,1.24706872]
[1761055864169,0.20385149,109610.0,109600.0,1.23706873]
[1761055864376,0.20385149,109610.0,109600.0,1.22794465]
[1761055864582,0.20385149,109610.0,109600.0,0.20921901]
[1761055864952,0.20385149,109610.0,109600.0,0.88806873]
[1761055865373,0.20395149,109610.0,109600.0,0.88294465]
[1761055865988,0.20395149,109610.0,109600.0,1.22294465]
[1761055866203,0.20395149,109610.0,109600.0,4.28812691]
[1761055866405,0.20637569,109610.0,109600.0,3.8100071]
[1761055866630,0.20637569,109610.0,109600.0,3.80088302]
[1761055866842,0.20637569,109610.0,109600.0,4.7753708]
[1761055867005,0.20637569,109610.0,109600.0,4.78049488]
[1761055867006,0.20647569,109610.0,109600.0,4.78049488]
[1761055867415,0.20647569,109610.0,109600.0,4.78349488]
[1761055867785,0.20647569,109610.0,109600.0,1.77049489]
[1761055867980,0.20647569,109610.0,109600.0,0.43881901]
[1761055868196,0.20647569,109610.0,109600.0,1.25134872]
[1761055869051,0.20647569,109610.0,109600.0,1.27753101]
[1761055869261,0.20647569,109610.0,109600.0,4.78477488]
[1761055869457,0.20657569,109610.0,109600.0,4.78477488]
[1761055871271,0.00841274,109610.0,109600.0,4.78477488]
[1761055871705,0.002,109620.0,109600.0,4.78477488]
[1761055871706,1e-08,109620.0,109610.0,4.62295417]
[1761055871928,0.2050175,109660.0,109650.0,3.58769989]
[1761055872187,0.20516428,109660.0,109650.0,4.39236279]
[1761055873379,1e-08,109680.0,109670.0,4.65197258]
[1761055873602,1e-08,109680.0,109670.0,4.78193257]
[1761055873818,0.56060743,109700.0,109690.0,4.03869166]
[1761055874056,0.31517507,109700.0,109690.0,4.32032827]
[1761055874261,0.65766086,109700.0,109690.0,4.34723912]
[1761055874524,0.32449279,109700.0,109690.0,4.35309711]
[1761055874766,0.31856181,109700.0,109690.0,4.29911891]
[1761055875003,0.48803801,109700.0,109690.0,4.32618626]
[1761055875211,0.46067024,109700.0,109690.0,4.32618626]
[1761055875460,0.22628349,109710.0,109700.0,0.58761176]
[1761055875683,0.21916672,109710.0,109700.0,4.52016898]
[1761055875898,0.21916672,109710.0,109700.0,4.37711982]
[1761055876132,0.23730149,109760.0,109720.0,1.08005188]
[1761055876342,0.23744817,109760.0,109750.0,4.15672012]
[1761055876586,0.23744817,109760.0,109750.0,3.80703156]
[1761055876805,0.23744817,109760.0,109750.0,3.81603512]
[1761055877221,0.23744817,109760.0,109750.0,4.30327901]
[1761055877432,0.23744817,109760.0,109750.0,4.39306752]
[1761055877643,0.23744817,109760.0,109750.0,4.45319282]
[1761055877644,0.2100804,109760.0,109750.0,4.45319282]
[1761055877865,0.18789861,109760.0,109750.0,4.78408204]
[1761055878075,0.16053084,109760.0,109750.0,4.79319116]
[1761055878285,0.13316307,109760.0,109750.0,4.80319115]
[1761055878500,0.07842753,109760.0,109750.0,4.79319116]
[1761055878719,1.25061548,109800.0,109790.0,3.62109159]
[1761055878720,0.56643673,109800.0,109790.0,3.62109159]
[1761055878936,0.22708071,109830.0,109820.0,3.56829846]
[1761055879166,0.01927748,109830.0,109820.0,4.65684386]
[1761055879377,0.01927748,109830.0,109820.0,3.92469777]
[1761055879607,0.01927748,109830.0,109820.0,3.9699842]
[1761055880025,0.01927748,109830.0,109820.0,3.43749388]
[1761055880243,0.01927748,109830.0,109820.0,2.72972999]
[1761055880508,0.01927748,109830.0,109820.0,2.95020999]
[1761055880729,0.01927748,109830.0,109820.0,3.51987943]
[1761055881138,0.01927748,109830.0,109820.0,3.51077528]
[1761055881374,0.26008148,109850.0,109830.0,3.68780855]
[1761055881571,0.00514659,109840.0,109830.0,3.77762756]
[1761055881816,0.00514659,109840.0,109830.0,3.29038367]
[1761055882033,0.00514659,109840.0,109830.0,4.15380984]
[1761055882247,0.26008148,109850.0,109830.0,4.16380983]
[1761055882452,0.26008148,109850.0,109840.0,4.23969015]
[1761055883392,0.26008148,109850.0,109840.0,2.92520237]
[1761055883594,0.26008148,109850.0,109840.0,2.7340152]
[1761055883800,0.26108148,109850.0,109840.0,3.41244626]
[1761055884384,0.26108148,109850.0,109840.0,3.23036324]
[1761055884600,0.26108148,109850.0,109840.0,4.23969015]
[1761055884798,0.26108148,109850.0,109840.0,3.26520237]
[1761055884799,0.26418839,109850.0,109840.0,3.26520237]
[1761055884947,0.26418839,109850.0,109840.0,4.23969015]
[1761055885152,0.26418839,109850.0,109840.0,3.26820237]
[1761055885355,0.07661627,109850.0,109840.0,3.74634211]
[1761055885590,0.07661627,109850.0,109840.0,3.75244543]
[1761055885790,0.07661627,109850.0,109840.0,3.26820154]
[1761055885994,0.07661627,109850.0,109840.0,4.24268932]
[1761055886195,0.07661627,109850.0,109840.0,4.23968932]
[1761055886662,0.07661627,109850.0,109840.0,4.233586]
[1761055887041,0.07661627,109850.0,109840.0,3.0770152]
[1761055887203,0.07661627,109850.0,109840.0,3.74634211]
[1761055887409,0.07661627,109850.0,109840.0,3.26820154]
[1761055887610,0.07661627,109850.0,109840.0,3.75544543]
[1761055888007,0.07661627,109850.0,109840.0,3.56425909]
[1761055888274,0.07661627,109850.0,109840.0,0.09281901]
[1761055888500,0.01999998,109860.0,109840.0,4.37126981]
[1761055888501,0.00999999,109860.0,109840.0,4.37126981]
[1761055888697,0.24490161,109880.0,109870.0,3.55113495]
[1761055888984,0.2450481,109880.0,109870.0,4.71878009]
[1761055889183,0.2450481,109880.0,109870.0,3.78538019]
[1761055889414,0.2450481,109880.0,109870.0,3.75339397]
[1761055889617,0.24297858,109880.0,109870.0,4.76496236]
[1761055889819,0.27134747,109900.0,109890.0,3.27181919]
[1761055889981,0.27134747,109900.0,109890.0,4.31986308]
[1761055890182,0.27134747,109900.0,109890.0,4.3518493]
[1761055890423,0.27134747,109900.0,109890.0,4.33005398]
[1761055890653,0.27134747,109900.0,109890.0,4.35998979]
[1761055890840,0.27134747,109900.0,109890.0,4.36998978]
[1761055891019,0.27134747,109900.0,109890.0,4.35998979]
[1761055891219,0.27698047,109920.0,109890.0,4.36979887]
[1761055891438,0.27712693,109920.0,109910.0,3.75902996]
[1761055891644,0.27712693,109920.0,109910.0,3.89142995]
[1761055891853,0.27712693,109920.0,109910.0,3.91765084]
[1761055892062,0.27712693,109920.0,109910.0,3.40418606]
[1761055892270,0.27712693,109920.0,109910.0,0.08981901]
[1761055892482,0.27712693,109920.0,109910.0,0.21245901]
[1761055893127,0.27712693,109920.0,109910.0,0.21545901]
[1761055893329,0.27712693,109920.0,109910.0,0.21245901]
[1761055893537,0.27712693,109920.0,109900.0,0.009]
[1761055893538,0.45907743,109920.0,109900.0,0.009]
[1761055893768,0.45907743,109920.0,109860.0,0.01820498]
[1761055893970,0.1910664,109910.0,109870.0,0.10741901]
[1761055894168,0.1910664,109910.0,109880.0,0.01430174]
[1761055894390,0.1910664,109910.0,109890.0,0.08981901]
[1761055894829,0.00172457,109900.0,109890.0,0.08981901]
[1761055895368,0.18370819,109900.0,109890.0,0.08981901]
[1761055895567,0.00172457,109900.0,109890.0,0.001]
[1761055895813,0.18370819,109900.0,109890.0,0.001]
[1761055896057,0.18370819,109900.0,109870.0,0.009]
[1761055896058,0.18200267,109890.0,109870.0,0.009]
[1761055896261,0.18200267,109890.0,109870.0,0.09881901]
[1761055896403,0.19113915,109870.0,109840.0,3.0]
[1761055896606,0.19116251,109860.0,109830.0,0.00107335]
[1761055896895,0.00999999,109890.0,109850.0,0.48724389]
[1761055897092,0.19108293,109900.0,109860.0,0.14140498]
[1761055897381,0.18202286,109880.0,109860.0,0.01820498]
[1761055897588,0.22726913,109900.0,109860.0,0.00014649]
[1761055897721,0.19110091,109890.0,109860.0,0.00014649]
[1761055897923,0.00999999,109910.0,109870.0,0.08981901]
[1761055898127,0.19108329,109900.0,109870.0,0.10802234]
[1761055898452,0.2181494,109910.0,109890.0,0.001]
[1761055898649,0.27798047,109920.0,109900.0,0.08981901]
[1761055898869,0.27798047,109920.0,109900.0,0.23137737]